[Event "GrandPrix_30.05"]
[Site "Chess.com"]
[Date "2020.05.30"]
[Round "4"]
[White "Sergey_Krivenko"]
[Black "Alex_Krayz"]
[Result "0-1"]
[WhiteElo "2080"]
[BlackElo "2178"]
[TimeControl "600+2"]
[EndTime "9:54:38 PDT"]
[Termination "Alex_Krayz won by resignation"]

1. d4 {[%clk 0:10:01.9]} 1... Nf6 {[%clk 0:09:59.8]} 2. Nf3 {[%clk 0:10:01.6]}
2... e6 {[%clk 0:10:00.1]} 3. Bf4 {[%clk 0:10:00]} 3... b6 {[%clk 0:10:00.1]} 4.
e3 {[%clk 0:09:57.6]} 4... Bb7 {[%clk 0:10:01]} 5. h3 {[%clk 0:09:56.5]} 5...
Be7 {[%clk 0:09:59.5]} 6. Bd3 {[%clk 0:09:50.3]} 6... c5 {[%clk 0:09:48]} 7.
Nbd2 {[%clk 0:09:48.9]} 7... Nc6 {[%clk 0:09:43.6]} 8. c3 {[%clk 0:09:44.3]}
8... d6 {[%clk 0:09:27.3]} 9. Bh2 {[%clk 0:09:31.6]} 9... a6 {[%clk 0:09:18.3]}
10. a4 {[%clk 0:07:49.8]} 10... O-O {[%clk 0:08:59.2]} 11. O-O {[%clk
0:07:45.7]} 11... Re8 {[%clk 0:08:29.6]} 12. Qb3 {[%clk 0:07:09.1]} 12... Bf8
{[%clk 0:08:04.7]} 13. e4 {[%clk 0:05:52.4]} 13... cxd4 {[%clk 0:07:54.7]} 14.
cxd4 {[%clk 0:05:54.3]} 14... Na5 {[%clk 0:07:43.6]} 15. Qd1 {[%clk 0:05:43.6]}
15... d5 {[%clk 0:07:35.7]} 16. e5 {[%clk 0:05:18.3]} 16... Ne4 {[%clk 0:07:34]}
17. Qe2 {[%clk 0:05:18]} 17... Bb4 {[%clk 0:06:35.4]} 18. Nxe4 {[%clk
0:05:09.4]} 18... dxe4 {[%clk 0:06:34.5]} 19. Bxe4 {[%clk 0:05:11.2]} 19... Bxe4
{[%clk 0:06:28.6]} 20. Qxe4 {[%clk 0:05:13.1]} 20... Qd5 {[%clk 0:06:06.3]} 21.
Qd3 {[%clk 0:04:30.1]} 21... Nb3 {[%clk 0:05:59.4]} 22. Ng5 {[%clk 0:03:54.3]}
22... h6 {[%clk 0:05:02.1]} 23. Qh7+ {[%clk 0:03:32.2]} 23... Kf8 {[%clk
0:05:00.1]} 24. Nf3 {[%clk 0:03:25.1]} 24... Ke7 {[%clk 0:03:42.7]} 25. Rad1
{[%clk 0:03:01]} 25... Rg8 {[%clk 0:03:37.4]} 26. Bg3 {[%clk 0:02:31.4]} 26...
Rac8 {[%clk 0:03:30.1]} 27. Qd3 {[%clk 0:02:21.8]} 27... a5 {[%clk 0:03:09.3]}
28. Bf4 {[%clk 0:02:07.8]} 28... g5 {[%clk 0:03:06]} 29. Bg3 {[%clk 0:01:57.9]}
29... h5 {[%clk 0:02:59.3]} 30. Qe3 {[%clk 0:01:46.2]} 30... h4 {[%clk
0:02:53.8]} 31. Bh2 {[%clk 0:01:42.9]} 31... g4 {[%clk 0:02:51.2]} 32. hxg4
{[%clk 0:01:40.7]} 32... Rxg4 {[%clk 0:02:50.3]} 33. Rd3 {[%clk 0:01:40.7]}
33... Rcg8 {[%clk 0:02:30.8]} 34. Rxb3 {[%clk 0:01:37.5]} 34... Rxg2+ {[%clk
0:01:42.9]} 35. Kh1 {[%clk 0:01:38.3]} 35... R2g4 {[%clk 0:01:32.2]} 36. Rg1
{[%clk 0:01:27.5]} 36... Rxg1+ {[%clk 0:01:19.4]} 37. Bxg1 {[%clk 0:01:29.4]}
37... Rg4 {[%clk 0:01:18]} 38. Bh2 {[%clk 0:01:25.2]} 38... Qc4 {[%clk
0:01:15.5]} 39. Rd3 {[%clk 0:01:15.2]} 39... Qc2 {[%clk 0:01:11.9]} 40. Bf4
{[%clk 0:00:54]} 40... Qb1+ {[%clk 0:01:08.6]} 41. Kh2 {[%clk 0:00:51.9]} 41...
Qf1 {[%clk 0:01:03]} 42. Bg5+ {[%clk 0:00:26.4]} 42... Ke8 {[%clk 0:01:00.6]}
43. Nxh4 {[%clk 0:00:19.4]} 43... Qg1+ {[%clk 0:00:52.7]} 44. Kh3 {[%clk
0:00:19.7]} 44... Rxg5 {[%clk 0:00:52.6]} 45. Qf4 {[%clk 0:00:17.9]} 45... Qf1+
{[%clk 0:00:48.9]} 46. Kh2 {[%clk 0:00:17.7]} 46... Qg1+ {[%clk 0:00:38.9]} 47.
Kh3 {[%clk 0:00:17.4]} 47... Qh1+ {[%clk 0:00:39.7]} 48. Qh2 {[%clk 0:00:15.3]}
48... Qf1+ {[%clk 0:00:39.9]} 0-1

[Event "GrandPrix_30.05"]
[Site "Chess.com"]
[Date "2020.05.30"]
[Round "4"]
[White "Saxar85"]
[Black "cassoulet"]
[Result "1/2-1/2"]
[WhiteElo "2410"]
[BlackElo "2190"]
[TimeControl "600+2"]
[EndTime "9:54:45 PDT"]
[Termination "Game drawn by repetition"]

1. e4 {[%clk 0:09:02.9]} 1... c5 {[%clk 0:09:52.1]} 2. Nf3 {[%clk 0:09:02.9]}
2... Nc6 {[%clk 0:09:53]} 3. Nc3 {[%clk 0:08:57.6]} 3... e6 {[%clk 0:09:47.3]}
4. Bb5 {[%clk 0:08:56.5]} 4... Nge7 {[%clk 0:09:44.3]} 5. O-O {[%clk 0:08:56.5]}
5... a6 {[%clk 0:09:37.8]} 6. Bxc6 {[%clk 0:08:56.6]} 6... Nxc6 {[%clk
0:09:32.7]} 7. d4 {[%clk 0:08:57]} 7... cxd4 {[%clk 0:09:33.8]} 8. Nxd4 {[%clk
0:08:57.6]} 8... Be7 {[%clk 0:09:34.6]} 9. Nxc6 {[%clk 0:08:48.7]} 9... bxc6
{[%clk 0:09:29.3]} 10. e5 {[%clk 0:08:46.4]} 10... O-O {[%clk 0:09:22.4]} 11.
Bf4 {[%clk 0:08:46.2]} 11... f6 {[%clk 0:08:59.3]} 12. exf6 {[%clk 0:08:31.3]}
12... Rxf6 {[%clk 0:08:54.3]} 13. Bd6 {[%clk 0:08:08.4]} 13... Bxd6 {[%clk
0:08:40.9]} 14. Qxd6 {[%clk 0:08:08.5]} 14... Qf8 {[%clk 0:08:41.8]} 15. Ne4
{[%clk 0:07:51.4]} 15... Rf5 {[%clk 0:08:00.2]} 16. c4 {[%clk 0:07:41.2]} 16...
c5 {[%clk 0:07:42.6]} 17. Rad1 {[%clk 0:07:25.5]} 17... Rf4 {[%clk 0:06:22.5]}
18. f3 {[%clk 0:06:52.6]} 18... Ra7 {[%clk 0:05:52.7]} 19. b3 {[%clk 0:06:36.5]}
19... Qxd6 {[%clk 0:05:35]} 20. Nxd6 {[%clk 0:06:18]} 20... Bb7 {[%clk
0:05:26.6]} 21. Rfe1 {[%clk 0:06:01]} 21... Ba8 {[%clk 0:04:16.9]} 22. Re5
{[%clk 0:05:11.4]} 22... Rc7 {[%clk 0:04:15.5]} 23. Rg5 {[%clk 0:05:06.7]} 23...
g6 {[%clk 0:03:42.8]} 24. Kf2 {[%clk 0:05:06.6]} 24... Kf8 {[%clk 0:03:37.1]}
25. Ke3 {[%clk 0:05:00.5]} 25... Rf6 {[%clk 0:03:29.5]} 26. h4 {[%clk
0:04:50.9]} 26... h6 {[%clk 0:03:13.4]} 27. Rg4 {[%clk 0:04:32.5]} 27... Ke7
{[%clk 0:03:01.9]} 28. Rf4 {[%clk 0:04:27.6]} 28... Rc6 {[%clk 0:02:14.5]} 29.
Rxf6 {[%clk 0:02:37]} 29... Kxf6 {[%clk 0:02:16.4]} 30. g4 {[%clk 0:02:37.3]}
30... Ke7 {[%clk 0:02:04]} 31. Ne4 {[%clk 0:02:37]} 31... d6 {[%clk 0:02:02.9]}
32. g5 {[%clk 0:02:05.3]} 32... h5 {[%clk 0:01:22.6]} 33. f4 {[%clk 0:01:57.4]}
33... Rc8 {[%clk 0:01:12]} 34. Nf6 {[%clk 0:01:47.6]} 34... Bc6 {[%clk
0:01:07.7]} 35. Kd3 {[%clk 0:01:46.6]} 35... a5 {[%clk 0:01:02.8]} 36. Kc3
{[%clk 0:01:47.2]} 36... Rb8 {[%clk 0:01:01.5]} 37. a3 {[%clk 0:01:46.9]} 37...
Rd8 {[%clk 0:00:58.5]} 38. b4 {[%clk 0:01:32.8]} 38... axb4+ {[%clk 0:01:00.4]}
39. axb4 {[%clk 0:01:33.7]} 39... cxb4+ {[%clk 0:01:01.5]} 40. Kxb4 {[%clk
0:01:34.7]} 40... Rb8+ {[%clk 0:01:03]} 41. Kc3 {[%clk 0:01:35.8]} 41... Ra8
{[%clk 0:00:59.7]} 42. Rb1 {[%clk 0:01:36.7]} 42... Ra3+ {[%clk 0:00:59.2]} 43.
Rb3 {[%clk 0:01:37.6]} 43... Rxb3+ {[%clk 0:00:52.4]} 44. Kxb3 {[%clk
0:01:38.4]} 44... e5 {[%clk 0:00:53.9]} 45. fxe5 {[%clk 0:01:34.5]} 45... dxe5
{[%clk 0:00:55.8]} 46. Kc3 {[%clk 0:01:19.1]} 46... Ke6 {[%clk 0:00:56.5]} 47.
Kd3 {[%clk 0:01:16.8]} 47... Kf5 {[%clk 0:00:54]} 48. Ke3 {[%clk 0:01:17.6]}
48... e4 {[%clk 0:00:51.7]} 49. Nd5 {[%clk 0:01:06.4]} 49... Bxd5 {[%clk
0:00:52.4]} 50. cxd5 {[%clk 0:01:07.1]} 50... Ke5 {[%clk 0:00:54]} 51. d6 {[%clk
0:00:58.4]} 51... Kxd6 {[%clk 0:00:55.1]} 52. Kxe4 {[%clk 0:00:59.5]} 52... Ke6
{[%clk 0:00:56.3]} 53. Kd4 {[%clk 0:00:52.7]} 53... Kd6 {[%clk 0:00:35.1]} 54.
Ke4 {[%clk 0:00:52.2]} 54... Ke6 {[%clk 0:00:32.6]} 55. Kd4 {[%clk 0:00:53.1]}
55... Kd6 {[%clk 0:00:15.8]} 56. Ke4 {[%clk 0:00:53.8]} 1/2-1/2

[Event "GrandPrix_30.05"]
[Site "Chess.com"]
[Date "2020.05.30"]
[Round "4"]
[White "A_N_D-R_E_I"]
[Black "RaphaeI"]
[Result "1-0"]
[WhiteElo "2106"]
[BlackElo "2159"]
[TimeControl "600+2"]
[EndTime "9:54:48 PDT"]
[Termination "A_N_D-R_E_I won on time"]

1. e4 {[%clk 0:10:01.9]} 1... c5 {[%clk 0:09:54.1]} 2. Nf3 {[%clk 0:10:02.5]}
2... Nc6 {[%clk 0:09:54.6]} 3. Bb5 {[%clk 0:10:03]} 3... g6 {[%clk 0:09:55.5]}
4. Bxc6 {[%clk 0:10:04.2]} 4... dxc6 {[%clk 0:09:56.5]} 5. d3 {[%clk 0:10:04.4]}
5... Bg7 {[%clk 0:09:57.5]} 6. h3 {[%clk 0:10:05.3]} 6... Nf6 {[%clk 0:09:52.2]}
7. O-O {[%clk 0:10:04.4]} 7... O-O {[%clk 0:09:29.5]} 8. Be3 {[%clk 0:10:01.1]}
8... b6 {[%clk 0:07:53.2]} 9. Qd2 {[%clk 0:10:01.7]} 9... e5 {[%clk 0:04:37.6]}
10. Bh6 {[%clk 0:10:00]} 10... Qe7 {[%clk 0:04:37.7]} 11. a3 {[%clk 0:09:54.1]}
11... Nh5 {[%clk 0:04:37.5]} 12. Bxg7 {[%clk 0:09:49.6]} 12... Kxg7 {[%clk
0:04:38.3]} 13. Nc3 {[%clk 0:09:47.6]} 13... f6 {[%clk 0:04:17.6]} 14. Ne2
{[%clk 0:09:44.3]} 14... Kh8 {[%clk 0:03:49]} 15. b4 {[%clk 0:09:33.8]} 15...
Be6 {[%clk 0:02:52.5]} 16. bxc5 {[%clk 0:09:27.1]} 16... Qxc5 {[%clk 0:02:54.4]}
17. Rfc1 {[%clk 0:08:52.7]} 17... Rad8 {[%clk 0:02:53.6]} 18. Qb4 {[%clk
0:08:52.9]} 18... Qd6 {[%clk 0:02:44.2]} 19. Qxd6 {[%clk 0:08:38.6]} 19... Rxd6
{[%clk 0:02:46.1]} 20. a4 {[%clk 0:08:38.7]} 20... c5 {[%clk 0:02:44.8]} 21. a5
{[%clk 0:08:33.9]} 21... b5 {[%clk 0:02:46.2]} 22. a6 {[%clk 0:08:15.8]} 22...
b4 {[%clk 0:01:35]} 23. Ra5 {[%clk 0:08:02.1]} 23... Rc8 {[%clk 0:01:36.1]} 24.
g4 {[%clk 0:07:24.2]} 24... Ng7 {[%clk 0:01:36.8]} 25. g5 {[%clk 0:07:11.3]}
25... fxg5 {[%clk 0:00:50.2]} 26. Nxe5 {[%clk 0:07:08.9]} 26... Bg8 {[%clk
0:00:49.5]} 27. f4 {[%clk 0:06:28.6]} 27... gxf4 {[%clk 0:00:45]} 28. Nxf4
{[%clk 0:06:29.3]} 28... g5 {[%clk 0:00:46.6]} 29. Ng2 {[%clk 0:06:23.7]} 29...
Ne6 {[%clk 0:00:47.5]} 30. Ne3 {[%clk 0:06:18.5]} 30... Nd4 {[%clk 0:00:48.7]}
31. Rf1 {[%clk 0:05:46.9]} 31... Kg7 {[%clk 0:00:25.2]} 32. Kh2 {[%clk
0:05:18.8]} 32... Be6 {[%clk 0:00:18.1]} 33. Rg1 {[%clk 0:04:43.5]} 33... h6
{[%clk 0:00:19.2]} 34. h4 {[%clk 0:04:43.1]} 34... Kf6 {[%clk 0:00:19.6]} 35.
N3g4+ {[%clk 0:04:25]} 35... Bxg4 {[%clk 0:00:20.2]} 36. Nxg4+ {[%clk
0:04:25.1]} 36... Ke6 {[%clk 0:00:21.8]} 37. Rf1 {[%clk 0:04:15.6]} 37... h5
{[%clk 0:00:13.2]} 38. Ne3 {[%clk 0:03:43.6]} 38... g4 {[%clk 0:00:13.3]} 39.
Nf5 {[%clk 0:03:28.5]} 39... Nf3+ {[%clk 0:00:04.1]} 40. Kg3 {[%clk 0:03:11.2]}
40... Rd7 {[%clk 0:00:04.9]} 41. Kf4 {[%clk 0:02:47]} 41... Rf7 {[%clk
0:00:04.4]} 42. Kg3 {[%clk 0:02:39.7]} 42... Ne5 {[%clk 0:00:03.2]} 43. d4
{[%clk 0:02:31.8]} 43... Nf3 {[%clk 0:00:04.4]} 44. dxc5 {[%clk 0:02:25.5]}
44... Rfc7 {[%clk 0:00:05.5]} 45. Rb5 {[%clk 0:02:07.8]} 45... Rxc5 {[%clk
0:00:06.4]} 46. Rxb4 {[%clk 0:02:07.6]} 46... Rc3 {[%clk 0:00:04.2]} 47. Kf4
{[%clk 0:02:05.1]} 47... R8c6 {[%clk 0:00:04]} 48. Ra1 {[%clk 0:01:53.8]} 48...
Rxc2 {[%clk 0:00:04.2]} 49. Rb7 {[%clk 0:01:54.4]} 49... Rc7 {[%clk 0:00:05.2]}
50. Rab1 {[%clk 0:01:37]} 50... Kd7 {[%clk 0:00:06.3]} 51. Rd1+ {[%clk
0:01:35.6]} 51... Kc8 {[%clk 0:00:06.8]} 52. Ne7+ {[%clk 0:01:25.6]} 52... Rxe7
{[%clk 0:00:05.5]} 53. Rxe7 {[%clk 0:01:27.1]} 53... Rc5 {[%clk 0:00:03.8]} 54.
Rxa7 {[%clk 0:01:19.3]} 54... Nxh4 {[%clk 0:00:04.7]} 55. Rg7 {[%clk 0:01:12.7]}
55... Ng2+ {[%clk 0:00:02.8]} 56. Kg3 {[%clk 0:01:11.2]} 1-0

[Event "GrandPrix_30.05"]
[Site "Chess.com"]
[Date "2020.05.30"]
[Round "4"]
[White "Gareth-Bale11"]
[Black "vladislavkovalev"]
[Result "0-1"]
[WhiteElo "2458"]
[BlackElo "2808"]
[TimeControl "600+2"]
[EndTime "9:54:49 PDT"]
[Termination "vladislavkovalev won by resignation"]

1. d4 {[%clk 0:10:00.9]} 1... Nf6 {[%clk 0:10:01]} 2. c4 {[%clk 0:10:01.2]} 2...
g6 {[%clk 0:10:00.1]} 3. Nc3 {[%clk 0:10:01.5]} 3... Bg7 {[%clk 0:10:01.6]} 4.
e4 {[%clk 0:10:02]} 4... d6 {[%clk 0:10:03.2]} 5. Be2 {[%clk 0:10:03.3]} 5...
O-O {[%clk 0:10:04.6]} 6. Be3 {[%clk 0:10:03.5]} 6... c5 {[%clk 0:10:03.6]} 7.
d5 {[%clk 0:10:04.5]} 7... e6 {[%clk 0:10:04.5]} 8. Nf3 {[%clk 0:10:05.8]} 8...
exd5 {[%clk 0:10:00.4]} 9. cxd5 {[%clk 0:10:07.7]} 9... Re8 {[%clk 0:09:51.7]}
10. Nd2 {[%clk 0:10:08.2]} 10... Na6 {[%clk 0:09:53.3]} 11. O-O {[%clk
0:09:59.9]} 11... Nc7 {[%clk 0:09:53.7]} 12. Qc2 {[%clk 0:09:31.1]} 12... Ng4
{[%clk 0:09:36]} 13. Bf4 {[%clk 0:09:20]} 13... Ne5 {[%clk 0:09:08.9]} 14. Bg3
{[%clk 0:09:07.6]} 14... f5 {[%clk 0:08:56.5]} 15. Rfe1 {[%clk 0:08:19.6]} 15...
Rb8 {[%clk 0:08:03.1]} 16. a3 {[%clk 0:07:27.5]} 16... b5 {[%clk 0:07:25.1]} 17.
b4 {[%clk 0:07:25.7]} 17... c4 {[%clk 0:07:21.8]} 18. a4 {[%clk 0:07:22.4]}
18... Qf6 {[%clk 0:07:21.3]} 19. exf5 {[%clk 0:06:22.5]} 19... Bxf5 {[%clk
0:06:21.6]} 20. Nde4 {[%clk 0:06:02.1]} 20... Qf8 {[%clk 0:06:22.9]} 21. f3
{[%clk 0:05:41.7]} 21... a6 {[%clk 0:06:11.2]} 22. Qd2 {[%clk 0:05:12.3]} 22...
Nf7 {[%clk 0:05:22.3]} 23. Ra3 {[%clk 0:05:02.9]} 23... Qe7 {[%clk 0:04:15.7]}
24. Bf1 {[%clk 0:04:47.5]} 24... Qd8 {[%clk 0:04:11.8]} 25. Bf2 {[%clk
0:04:36.1]} 25... Bh6 {[%clk 0:03:45.6]} 26. Qd4 {[%clk 0:04:26.5]} 26... Bg7
{[%clk 0:03:45.6]} 27. Qd2 {[%clk 0:04:26.7]} 27... Bxe4 {[%clk 0:03:38.9]} 28.
Nxe4 {[%clk 0:04:23.4]} 28... Re5 {[%clk 0:03:40]} 29. axb5 {[%clk 0:03:57]}
29... axb5 {[%clk 0:03:16.4]} 30. Ra7 {[%clk 0:03:51.6]} 30... Ra8 {[%clk
0:03:06.6]} 31. Rea1 {[%clk 0:03:37.8]} 31... Rxe4 {[%clk 0:02:36.7]} 32. Rxa8
{[%clk 0:03:06.9]} 32... Nxa8 {[%clk 0:02:38.6]} 33. Rxa8 {[%clk 0:03:07.1]}
33... Qxa8 {[%clk 0:02:36.3]} 34. fxe4 {[%clk 0:03:08.7]} 34... Qa1 {[%clk
0:02:24]} 35. g3 {[%clk 0:02:02.1]} 35... Ne5 {[%clk 0:01:56.5]} 36. Kg2 {[%clk
0:01:42.1]} 36... c3 {[%clk 0:01:30.5]} 37. Qd4 {[%clk 0:01:01.9]} 37... Qb2
{[%clk 0:01:07.5]} 38. Bxb5 {[%clk 0:00:17.4]} 38... Ng4 {[%clk 0:01:01.4]} 39.
e5 {[%clk 0:00:15.5]} 39... Qxf2+ {[%clk 0:00:56]} 40. Qxf2 {[%clk 0:00:16.1]}
40... Nxf2 {[%clk 0:00:57.9]} 41. e6 {[%clk 0:00:17.7]} 41... Kf8 {[%clk
0:00:51.4]} 42. Ba4 {[%clk 0:00:16.1]} 42... Nd3 {[%clk 0:00:51.4]} 43. b5
{[%clk 0:00:16.8]} 43... c2 {[%clk 0:00:21.9]} 44. Bxc2 {[%clk 0:00:12.5]} 44...
Ne1+ {[%clk 0:00:23.4]} 45. Kf1 {[%clk 0:00:11]} 45... Nxc2 {[%clk 0:00:25.3]}
46. b6 {[%clk 0:00:11.6]} 46... Bd4 {[%clk 0:00:26]} 47. b7 {[%clk 0:00:11.7]}
47... Ba7 {[%clk 0:00:27.5]} 48. Ke2 {[%clk 0:00:13.6]} 48... Nb4 {[%clk
0:00:28.8]} 0-1

[Event "GrandPrix_30.05"]
[Site "Chess.com"]
[Date "2020.05.30"]
[Round "4"]
[White "GM_dmitrij"]
[Black "Onischuk_V"]
[Result "0-1"]
[WhiteElo "2460"]
[BlackElo "2547"]
[TimeControl "600+2"]
[EndTime "9:54:49 PDT"]
[Termination "Onischuk_V won by resignation"]

1. e4 {[%clk 0:10:00.9]} 1... d6 {[%clk 0:09:44.4]} 2. d4 {[%clk 0:10:01.4]}
2... Nf6 {[%clk 0:09:38.4]} 3. Nc3 {[%clk 0:10:01.4]} 3... g6 {[%clk 0:09:40]}
4. Bf4 {[%clk 0:09:56.1]} 4... Nc6 {[%clk 0:09:37.1]} 5. Qd2 {[%clk 0:09:52.9]}
5... Bg7 {[%clk 0:09:10.5]} 6. O-O-O {[%clk 0:09:51.9]} 6... h6 {[%clk
0:08:38.7]} 7. Nf3 {[%clk 0:09:19.8]} 7... Bg4 {[%clk 0:08:32.5]} 8. Be2 {[%clk
0:09:12.3]} 8... Bxf3 {[%clk 0:08:13.2]} 9. Bxf3 {[%clk 0:09:12]} 9... e5 {[%clk
0:08:14]} 10. dxe5 {[%clk 0:08:55.4]} 10... dxe5 {[%clk 0:08:15]} 11. Qe2 {[%clk
0:07:40.4]} 11... Qe7 {[%clk 0:07:52.1]} 12. Be3 {[%clk 0:07:31.2]} 12... O-O
{[%clk 0:07:03.3]} 13. Qc4 {[%clk 0:07:01.7]} 13... Rfd8 {[%clk 0:06:54.3]} 14.
h4 {[%clk 0:06:02.3]} 14... Rxd1+ {[%clk 0:05:03.2]} 15. Rxd1 {[%clk 0:05:58.3]}
15... Rd8 {[%clk 0:05:04.5]} 16. Rxd8+ {[%clk 0:05:21.1]} 16... Qxd8 {[%clk
0:05:03.1]} 17. Qb5 {[%clk 0:04:57.5]} 17... Qc8 {[%clk 0:04:53.6]} 18. h5
{[%clk 0:04:44.6]} 18... g5 {[%clk 0:04:50.2]} 19. Be2 {[%clk 0:04:15.6]} 19...
a6 {[%clk 0:04:30.6]} 20. Qd3 {[%clk 0:03:32.4]} 20... Nd4 {[%clk 0:02:56.7]}
21. Bxd4 {[%clk 0:02:50.9]} 21... exd4 {[%clk 0:02:56.3]} 22. Qxd4 {[%clk
0:02:52.8]} 22... Nxh5 {[%clk 0:02:56.4]} 23. e5 {[%clk 0:02:06]} 23... Nf4
{[%clk 0:02:56.6]} 24. Bc4 {[%clk 0:02:05.1]} 24... b5 {[%clk 0:02:54.6]} 25. g3
{[%clk 0:01:48.3]} 25... Ng6 {[%clk 0:02:41.8]} 26. Bb3 {[%clk 0:01:18.9]} 26...
c5 {[%clk 0:02:35.4]} 27. Qe4 {[%clk 0:00:33.5]} 27... c4 {[%clk 0:02:34.6]} 28.
Nd5 {[%clk 0:00:34.5]} 28... cxb3 {[%clk 0:02:26.6]} 29. axb3 {[%clk 0:00:36.4]}
29... Qh3 {[%clk 0:02:04.2]} 30. f4 {[%clk 0:00:16.4]} 30... Qxg3 {[%clk
0:01:40.5]} 31. e6 {[%clk 0:00:12.1]} 31... fxe6 {[%clk 0:01:12.8]} 32. Qxe6+
{[%clk 0:00:14]} 32... Kh7 {[%clk 0:01:13.1]} 33. fxg5 {[%clk 0:00:15.4]} 33...
Qg1+ {[%clk 0:01:09.4]} 34. Kd2 {[%clk 0:00:16.5]} 34... Qxg5+ {[%clk
0:01:09.1]} 35. Kd1 {[%clk 0:00:16.4]} 35... Ne5 {[%clk 0:01:06.6]} 36. c4
{[%clk 0:00:14.5]} 36... bxc4 {[%clk 0:00:55.7]} 37. bxc4 {[%clk 0:00:16.4]}
37... Qg1+ {[%clk 0:00:52.8]} 38. Kc2 {[%clk 0:00:15.5]} 38... Qg6+ {[%clk
0:00:52.3]} 39. Qxg6+ {[%clk 0:00:14.7]} 39... Kxg6 {[%clk 0:00:53.8]} 40. c5
{[%clk 0:00:15.1]} 40... Kf5 {[%clk 0:00:54.2]} 41. b4 {[%clk 0:00:12.1]} 41...
h5 {[%clk 0:00:49.9]} 42. Kd2 {[%clk 0:00:11.7]} 42... Nc6 {[%clk 0:00:42.8]}
43. Kd3 {[%clk 0:00:05.9]} 43... h4 {[%clk 0:00:41.8]} 44. Ke3 {[%clk
0:00:06.6]} 44... Ke5 {[%clk 0:00:40.7]} 45. Nc7 {[%clk 0:00:07.6]} 45... Nxb4
{[%clk 0:00:41.4]} 46. Kf3 {[%clk 0:00:08.1]} 46... Bf6 {[%clk 0:00:39.8]} 47.
Kg4 {[%clk 0:00:08]} 47... Bd8 {[%clk 0:00:40.5]} 48. Ne8 {[%clk 0:00:04.2]}
48... a5 {[%clk 0:00:41.3]} 49. Nd6 {[%clk 0:00:05.6]} 49... Nc6 {[%clk
0:00:40.1]} 50. Nb7 {[%clk 0:00:06]} 50... Kd5 {[%clk 0:00:39.9]} 0-1

[Event "GrandPrix_30.05"]
[Site "Chess.com"]
[Date "2020.05.30"]
[Round "4"]
[White "RussianChessFighter"]
[Black "AvitalBor"]
[Result "0-1"]
[WhiteElo "2257"]
[BlackElo "2654"]
[TimeControl "600+2"]
[EndTime "9:54:52 PDT"]
[Termination "AvitalBor won by checkmate"]

1. c4 {[%clk 0:10:01.9]} 1... b6 {[%clk 0:09:59.8]} 2. Nc3 {[%clk 0:10:02.2]}
2... e6 {[%clk 0:09:56.1]} 3. Nf3 {[%clk 0:09:46.4]} 3... Bb7 {[%clk 0:09:52.9]}
4. e4 {[%clk 0:09:47.2]} 4... Bb4 {[%clk 0:09:44.2]} 5. Qc2 {[%clk 0:09:43.7]}
5... Bxc3 {[%clk 0:09:21.4]} 6. dxc3 {[%clk 0:09:41.6]} 6... d6 {[%clk
0:09:18.5]} 7. Be2 {[%clk 0:09:38]} 7... Nd7 {[%clk 0:09:17.7]} 8. O-O {[%clk
0:09:37.9]} 8... Nc5 {[%clk 0:08:49.3]} 9. e5 {[%clk 0:09:18]} 9... dxe5 {[%clk
0:08:22.6]} 10. Nxe5 {[%clk 0:09:19.9]} 10... Qf6 {[%clk 0:08:21]} 11. f4 {[%clk
0:08:10.6]} 11... Be4 {[%clk 0:07:04.5]} 12. Qd1 {[%clk 0:08:06.4]} 12... Rd8
{[%clk 0:06:56.6]} 13. Qe1 {[%clk 0:08:06.5]} 13... Ne7 {[%clk 0:06:46]} 14. Be3
{[%clk 0:07:47.6]} 14... Nd7 {[%clk 0:05:22.1]} 15. Bd4 {[%clk 0:06:59]} 15...
Nxe5 {[%clk 0:04:46.8]} 16. Bxe5 {[%clk 0:07:00.9]} 16... Qg6 {[%clk 0:04:48]}
17. Bf3 {[%clk 0:06:59.8]} 17... Bd3 {[%clk 0:04:16.9]} 18. Rf2 {[%clk
0:06:39.6]} 18... c5 {[%clk 0:04:05.6]} 19. Rd1 {[%clk 0:06:18.6]} 19... O-O
{[%clk 0:03:53.6]} 20. Rfd2 {[%clk 0:06:14.9]} 20... Rd7 {[%clk 0:03:04.2]} 21.
g3 {[%clk 0:02:25.2]} 21... f6 {[%clk 0:02:17.9]} 22. Bc7 {[%clk 0:02:12.1]}
22... Kh8 {[%clk 0:01:43.2]} 23. Be4 {[%clk 0:01:56]} 23... Qf7 {[%clk
0:01:19.2]} 24. Bxb6 {[%clk 0:01:44.9]} 24... axb6 {[%clk 0:01:19.3]} 25. Rxd3
{[%clk 0:01:45.7]} 25... Rxd3 {[%clk 0:01:15.2]} 26. Rxd3 {[%clk 0:01:47.6]}
26... f5 {[%clk 0:01:14.3]} 27. Bf3 {[%clk 0:01:44.9]} 27... Ng6 {[%clk
0:01:15]} 28. Rd6 {[%clk 0:01:29.4]} 28... e5 {[%clk 0:01:12.5]} 29. fxe5 {[%clk
0:01:23.3]} 29... f4 {[%clk 0:01:13]} 30. e6 {[%clk 0:00:35.2]} 30... Qf6 {[%clk
0:01:10.6]} 31. e7 {[%clk 0:00:15.3]} 31... Qxd6 {[%clk 0:01:08.3]} 32. e8=Q
{[%clk 0:00:16]} 32... fxg3 {[%clk 0:00:25.2]} 33. Q8e4 {[%clk 0:00:15.1]} 33...
gxh2+ {[%clk 0:00:24.1]} 34. Kh1 {[%clk 0:00:16]} 34... Nf4 {[%clk 0:00:13.8]}
35. Qe5 {[%clk 0:00:11.4]} 35... Qg6 {[%clk 0:00:07.7]} 36. Be4 {[%clk
0:00:06.9]} 36... Qg4 {[%clk 0:00:04.8]} 37. Bd5 {[%clk 0:00:05.8]} 37... Nd3
{[%clk 0:00:03.6]} 38. Qe8 {[%clk 0:00:05]} 38... Qf4 {[%clk 0:00:03.4]} 39.
Q1e2 {[%clk 0:00:03.2]} 39... Nf2+ {[%clk 0:00:04.2]} 40. Qxf2 {[%clk 0:00:04]}
40... Qxf2 {[%clk 0:00:05.5]} 41. Qh5 {[%clk 0:00:05.8]} 41... Qg1# {[%clk
0:00:05.7]} 0-1